Cogmind - Beta 11.1 @@@ ROGUE MODE // 2022.07.22 @ 08:46:50 Player: Vine Result: Self-destructed Performance ------------- Evolutions (2) 1000 Regions Visited (4) 800 Robots Destroyed (23) 115 Value Destroyed (675) 675 Prototype IDs (2) 40 Alien Tech Used (0) 0 Bonus (205) 205 TOTAL SCORE: 2835 Bonus ------- Follower Combat Kills 313 Friendly Fire -108 Cogmind --------- Core Integrity 471/550 Matter 300/300 Energy 430/430 System Corruption 0% Temperature Warm (120) Movement Walking (123) Location -8/Materials Parts ------- > --- POWER (2) -------- Ion Engine Cooled Ion Engine > --- PROPULSION (3) --- Improved Aluminum Leg Improved Aluminum Leg Titanium Leg > --- UTILITY (4) ------ Small Storage Unit Sensor Array Terrain Scan Processor ECM Suite > --- WEAPON (2) ------- EM Shotgun Advanced Beam Cannon > --- INVENTORY (8) ---- Improved Aluminum Leg Improved Aluminum Leg Improved Aluminum Leg Improved Aluminum Leg Improved Terrain Scanner Improved Terrain Scanner Advanced Beam Cannon Advanced Beam Cannon Peak State ------------ > --- POWER ------------ Ion Engine Cooled Ion Engine > --- PROPULSION ------- Improved Aluminum Leg Improved Aluminum Leg Titanium Leg > --- UTILITY ---------- Small Storage Unit Sensor Array Improved Terrain Scanner Terrain Scan Processor > --- WEAPON ----------- Advanced Beam Cannon Advanced Beam Cannon > --- INVENTORY -------- Improved Aluminum Leg Improved Aluminum Leg Improved Aluminum Leg Improved Aluminum Leg Terrain Scanner ECM Suite Advanced Beam Cannon Advanced Beam Cannon [Rating: 25] Favorites ----------- Power Ion Engine Engine Ion Engine Propulsion Improved Aluminum Leg Leg Improved Aluminum Leg Utility Small Storage Unit Device Sensor Array Storage Small Storage Unit Processor Terrain Scan Processor Weapon Advanced Beam Cannon Energy Gun EM Shotgun Energy Cannon Advanced Beam Cannon Ballistic Gun Autogun Build | -11 -10 -9 -9 -8 ------- Run | Scr Mat Mat Sto Mat Slots Evolved 4 | . . 2 . 2 Power 1 | . . . . 1 Propulsion 1 | . . . . 1 Utility 2 | . . 2 . . Weapon . | . . . . . Parts Attached 41 | 7 8 7 8 11 Power 6 | 2 . 2 1 1 Engine 6 | 2 . 2 1 1 Core . | . . . . . Reactor . | . . . . . Propulsion 12 | 2 4 2 2 2 Treads . | . . . . . Leg 12 | 2 4 2 2 2 Wheel . | . . . . . Hover . | . . . . . Flight . | . . . . . Utility 12 | 1 1 2 2 6 Device 10 | . 1 1 2 6 Storage 1 | 1 . . . . Processor 1 | . . 1 . . Hackware . | . . . . . Protection . | . . . . . Artifact . | . . . . . Weapon 11 | 2 3 1 3 2 Energy Gun 5 | 1 2 1 . 1 Energy Cannon 4 | . . . 3 1 Ballistic Gun 2 | 1 1 . . . Ballistic Cannon . | . . . . . Launcher . | . . . . . Special Weapon . | . . . . . Impact Weapon . | . . . . . Slashing Weapon . | . . . . . Piercing Weapon . | . . . . . Special Melee Weapon . | . . . . . Unidentified Prototypes 1 | . . . 1 . Parts Lost . | . . . . . Power . | . . . . . Propulsion . | . . . . . Utility . | . . . . . Weapon . | . . . . . Highest Loss Streak . | . . . . . To Critical Strikes . | . . . . . Average Slot Usage (%) 99 | . 95 99 99 100 Engine 12 | . 14 11 11 18 Leg 23 | . 28 22 21 27 Device 19 | . 9 21 22 18 Storage 11 | . 14 11 11 9 Processor 8 | . . 11 11 9 Energy Gun 7 | . 22 11 . 4 Energy Cannon 11 | . . . 21 13 Ballistic Gun 3 | . 5 11 . . Naked Turns . | . . . . . Heaviest Build 29 | 13 16 21 24 29 Greatest Support 43 | 20 20 23 26 43 Greatest Overweight (x) . | . . . . . Average Overweight (x) . | . . . . . Largest Inventory Capacity 8 | 8 8 8 8 8 Average Capacity 7 | 6 8 8 8 8 Most Carried 8 | 4 8 8 8 8 Average Carried 7 | 1 6 7 7 7 Final Capacity 8 | 8 8 8 8 8 Final Carried 8 | 1 8 8 8 8 Class Distribution -------------------- 85% | Mutant 14% | Skirmisher Dominant Class ---------------- Mutant | -10/Materials Mutant | -9/Materials Mutant | -9/Storage Skirmisher | -8/Materials Resources | -11 -10 -9 -9 -8 ----------- Run | Scr Mat Mat Sto Mat Matter Collected 775 | 218 167 155 125 110 Remotely . | . . . . . Salvage Created 999 | . 204 251 368 176 Parts 52 | . 9 14 21 8 Haulers Intercepted 2 | . . . 1 1 Recyclers Shooed 3 | . . . 3 . Parts Field Recycled . | . . . . . Retrieved Matter . | . . . . . Parts Self-Destructed . | . . . . . Prevented . | . . . . . Kills | -11 -10 -9 -9 -8 ------- Run | Scr Mat Mat Sto Mat Combat Hostiles Destroyed 15 | . 5 5 3 2 Guns 10 | . 5 4 . 1 Cannons 3 | . . . 3 . AOE 1 | . . 1 . . Classes Destroyed 8 | . 1 2 4 1 Builder 1 | . . . 1 . Hauler 2 | . . . 1 1 Recycler 2 | . . . 2 . Operator 1 | . . . . 1 Watcher 2 | . . 1 1 . Swarmer 1 | . . . 1 . Grunt 10 | . 5 3 1 1 Sentry 4 | . . 2 1 1 Best Kill Streak 2 | . 2 2 2 2 Combat Bots Only 2 | . 2 2 1 1 Max Kills in Single Turn 1 | . 1 1 1 1 Gunslinging . | . . . . . Exploded 1 | . . 1 . . Melee . | . . . . . Uniques/NPCs Destroyed . | . . . . . Combat | -11 -10 -9 -9 -8 -------- Run | Scr Mat Mat Sto Mat Damage Taken 1054 | . 282 327 179 266 Core 281 | . 73 96 33 79 Absorbed by Shields . | . . . . . Regen/Repaired (Parts) 67 | . . . 67 . Core Remaining (%) 79 | 100 70 . 67 . Volleys Fired 83 | . 22 17 29 15 Largest 2 | . 2 2 2 2 Hottest 136 | . 115 73 136 136 Shots Fired 169 | . 44 34 61 30 Gun 90 | . 44 34 . 12 Cannon 79 | . . . 61 18 Launcher . | . . . . . Special . | . . . . . Kinetic 32 | . 15 17 . . Thermal 111 | . 29 3 61 18 Explosive . | . . . . . Electromagnetic 26 | . . 14 . 12 Robot Hit Streak 12 | . 8 12 5 5 Robot Miss Streak 9 | . 3 3 9 4 Penetration Max . | . . . . . Secondary Targets 1 | . 1 . . . Max Gunslinging Chain 1 | . 1 . . . Shots Hit Robots 105 | . 32 26 29 18 Core Hits 43 | . 12 11 9 11 Critical Kills 2 | . . . . 2 Critical Parts Destroyed . | . . . . . Critical Strikes 3 | . . 1 . 2 Meltdown 2 | . . . . 2 Destroy 1 | . . 1 . . Melee Attacks . | . . . . . Impact . | . . . . . Slashing . | . . . . . Piercing . | . . . . . Sneak Attacks . | . . . . . Combat Hostiles . | . . . . . Follow-up Attacks . | . . . . . Damage Inflicted 1837 | . 406 455 655 321 Guns 937 | . 406 373 . 158 Cannons 818 | . . . 655 163 Explosions 82 | . . 82 . . Melee . | . . . . . Ramming . | . . . . . Kinetic 326 | . 168 158 . . Thermal 1164 | . 238 108 655 163 Explosive . | . . . . . Electromagnetic 347 | . . 189 . 158 Impact . | . . . . . Slashing . | . . . . . Piercing . | . . . . . Highest Corruption 3 | . 1 1 3 . Average Corruption 2 | . 1 1 3 . Corruption Purged . | . . . . . Corruption Blocked . | . . . . . Effects 23 | . . 2 21 . Message Errors 2 | . . . 2 . Matter Fused 7 | . . 1 6 . Heat Flow Errors 3 | . . . 3 . Energy Discharges 3 | . . . 3 . Data Loss (minor) 2 | . . . 2 . Data Loss (major) 3 | . . 1 2 . Misfires 3 | . . . 3 . Overload Shots . | . . . . . Overflow Damage 29 | . . . 29 . Projectiles 29 | . . . 29 . Explosions . | . . . . . Melee . | . . . . . Knockbacks . | . . . . . Impact . | . . . . . Kinetic . | . . . . . Secondary . | . . . . . Self-Inflicted Damage 68 | . . 68 . . Shots 2 | . . 2 . . Rammed . | . . . . . Targets Rammed . | . . . . . Kicked . | . . . . . Crushed . | . . . . . Highest Temperature 492 | . 216 120 492 198 Average Temperature 95 | . 69 50 129 71 Received Heat Transfer 498 | . 177 150 63 108 Effects 3 | . . . 3 . Shutdowns 2 | . . . 2 . Interference 1 | . . . 1 . Siege Activations . | . . . . . Robots Corrupted . | . . . . . Combat Hostiles . | . . . . . Parts Fried 1 | . . 1 . . Impact Corruptions . | . . . . . Robots Melted 2 | . . . . 2 Combat Hostiles 1 | . . . . 1 Parts Melted 4 | . . . 1 3 Heat Transferred 2249 | . 571 124 1258 296 Parts Sabotaged . | . . . . . Parts Stolen . | . . . . . Parts Stripped . | . . . . . Power Chain Reactions 2 | . . 2 . . Missiles Intercepted . | . . . . . Alert | -11 -10 -9 -9 -8 ------- Run | Scr Mat Mat Sto Mat Peak Influence 441 | . 115 224 441 188 Initial 113 | . . 9 56 113 Average 157 | . 68 87 266 106 Maximum Alert Level 2 | . . 1 2 . Low Security (%) 67 | 100 100 93 21 100 Level 1 31 | . . 6 75 . Level 2 1 | . . . 3 . Level 3 . | . . . . . Level 4 . | . . . . . Level 5 . | . . . . . High Security . | . . . . . Max Security . | . . . . . Squads Dispatched 4 | . 1 1 1 1 Investigation 1 | . . . 1 . Extermination . | . . . . . Reinforcement 3 | . 1 1 . 1 Assault . | . . . . . Garrison . | . . . . . Intercept . | . . . . . Searches Triggered . | . . . . . Construction Impeded . | . . . . . Haulers Reinforced . | . . . . . Active Scanning Responses . | . . . . . Cargo Convoy Interrupts . | . . . . . Stealth | -11 -10 -9 -9 -8 --------- Run | Scr Mat Mat Sto Mat Distress Signals 4 | . . 1 . 3 Communications Jammed . | . . . . . Distress Signals . | . . . . . Times Spotted 61 | . 6 18 20 17 Peak Tracking Total 7 | . 3 4 4 7 Tactical Retreats 11 | . . 6 . 5 Traps | -11 -10 -9 -9 -8 ------- Run | Scr Mat Mat Sto Mat Traps Triggered 5 | . 1 1 3 . Indirectly . | . . . . . Trap Hack Attempts . | . . . . . Triggered . | . . . . . Disarmed . | . . . . . Reprogrammed 5 | . . . 5 . Reused . | . . . . . Traps Extracted . | . . . . . Installed . | . . . . . Triggered . | . . . . . Machines | -11 -10 -9 -9 -8 ---------- Run | Scr Mat Mat Sto Mat Machines Disabled 5 | . . 1 4 . Max in Single Turn 1 | . . 1 1 . Machines Sabotaged . | . . . . . Garrisons Compromised . | . . . . . Overloaded Fab Kills . | . . . . . Hacking | -11 -10 -9 -9 -8 --------- Run | Scr Mat Mat Sto Mat Machines Accessed 14 | . 2 1 10 1 Terminals 10 | . 1 1 7 1 Fabricators . | . . . . . Repair Stations 1 | . . . 1 . Recycling Units 3 | . 1 . 2 . Scanalyzers . | . . . . . Garrison Access . | . . . . . Total Hacks 31 | . 3 2 24 2 Successful 20 | . 1 2 17 . Failed 11 | . 2 . 7 2 Catastrophic . | . . . . . Database Lockouts . | . . . . . Manual . | . . . . . Terminals 23 | . 2 2 17 2 Fabricators . | . . . . . Repair Stations 4 | . . . 4 . Recycling Units 4 | . 1 . 3 . Scanalyzers . | . . . . . Garrison Access . | . . . . . Terminal Hacks 14 | . . 2 12 . Prototype ID Bank 1 | . . . 1 . Emergency Access Points 1 | . . 1 . . Alert Level 4 | . . 1 3 . Locate Traps 2 | . . . 2 . Reprogram Traps 1 | . . . 1 . Dispatch Records 1 | . . . 1 . Recall Reinforcements 1 | . . . 1 . Hauler Manifests 1 | . . . 1 . Registered Components 1 | . . . 1 . Zone Layout 1 | . . . 1 . Fabricator Hacks . | . . . . . Repair Station Hacks 4 | . . . 4 . Scan Component 2 | . . . 2 . Repair 2 | . . . 2 . Recycling Unit Hacks 2 | . 1 . 1 . Process 1 | . 1 . . . Report Inventory 1 | . . . 1 . Scanalyzer . | . . . . . Garrison Access Hacks . | . . . . . Unauthorized Hacks . | . . . . . Terminals . | . . . . . Fabricators . | . . . . . Repair Stations . | . . . . . Recycling Units . | . . . . . Scanalyzers . | . . . . . Garrison Access . | . . . . . Data Cores Recovered . | . . . . . Used . | . . . . . Hacking Detections 9 | . 1 . 7 1 Full Trace Events . | . . . . . Feedback Events . | . . . . . Feedback Blocked . | . . . . . Robot Schematics Acquired . | . . . . . Robots Built . | . . . . . Authchips . | . . . . . Time . | . . . . . Total Robot Build Rating . | . . . . . Part Schematics Acquired . | . . . . . Parts Built . | . . . . . Authchips . | . . . . . Time . | . . . . . Total Part Build Rating . | . . . . . Parts Repaired 2 | . . . 2 . Time 58 | . . . 58 . Parts Recycled . | . . . . . Recycled Matter 135 | . 135 . . . Retrieved Matter . | . . . . . Retrieved Components . | . . . . . Parts Scanalyzed . | . . . . . Part Schematics Acquired . | . . . . . Parts Damaged . | . . . . . Bothacking | -11 -10 -9 -9 -8 ------------ Run | Scr Mat Mat Sto Mat Used RIF Installer . | . . . . . Robots Hacked . | . . . . . Non-combat . | . . . . . Combat . | . . . . . Robot Hacks Applied . | . . . . . Relay Couplers Released . | . . . . . Fabnet Peak Effective % . | . . . . . Robots Rewired . | . . . . . Allies Hacked . | . . . . . Hacks Repelled . | . . . . . Allies | -11 -10 -9 -9 -8 -------- Run | Scr Mat Mat Sto Mat Total Allies 1 | . . . 1 . Largest Group 1 | . . . 1 1 Highest-Rated Group 100 | . . . 100 100 Highest-Rated Ally 100 | . . . 100 100 Total Orders . | . . . . . Ally Attacks 34 | . . . 34 . Total Damage 959 | . . . 959 . Kills 14 | . . . 14 . Allies Corrupted . | . . . . . Allies Melted . | . . . . . Intel | -11 -10 -9 -9 -8 ------- Run | Scr Mat Mat Sto Mat Robot Analysis Total . | . . . . . Derelict Logs Recovered . | . . . . . Drone Launches . | . . . . . Drone Recoveries . | . . . . . Exploration | -11 -10 -9 -9 -8 ------------- Run | Scr Mat Mat Sto Mat Turns Passed 3515 | 63 575 815 1399 663 Spaces Moved 2169 | 44 358 443 967 357 Core 9 | 9 . . . . Treads . | . . . . . Legs 2160 | 35 358 443 967 357 Wheels . | . . . . . Hover . | . . . . . Flight . | . . . . . Fastest Speed 50 | 50 120 120 120 120 Average Speed 120 | 105 120 120 120 122 Slowest Speed 123 | 120 120 120 120 123 Overloaded Moves . | . . . . . Propulsion Burnouts . | . . . . . Robots Hopped . | . . . . . Cave-ins Triggered . | . . . . . Exploration Rate (%) 35 | 3 39 24 94 19 Regions Visited 4 Branch Regions 1 Pre-discovered Areas . | . . . . . Known Exits Taken . | . . . . . Unknown Exits Taken 4 | 1 1 1 1 . Scrap Searched . | . . . . . Spaces Dug . | . . . . . Terrain Destroyed 7 | . . 7 . . Melee . | . . . . . Projectile . | . . . . . AOE 7 | . . 7 . . Terrain Rammed . | . . . . . Walls Destroyed . | . . . . . Machines Disabled . | . . . . . Actions | -11 -10 -9 -9 -8 --------- Run | Scr Mat Mat Sto Mat Total 2924 | 60 462 696 1157 549 Wait 552 | 3 54 222 114 159 Move 2165 | 43 357 442 966 357 Hop . | . . . . . Pick Up 45 | 7 14 3 17 4 Fast Attach 3 | . . 2 1 . Attach 14 | 6 2 1 3 2 Detach . | . . . . . Swap 24 | 1 6 4 4 9 Drop 33 | . 7 5 18 3 Fire 83 | . 22 17 29 15 Melee . | . . . . . Ram . | . . . . . Kick . | . . . . . Crush . | . . . . . Escape Stasis 5 | . . . 5 . Rewire . | . . . . . Trap . | . . . . . Miscellaneous . | . . . . . Route ------- -11/Scrapyard -10/Materials -9/Materials (discovered 2 exits: [*Min] / *Sto) -9/Storage (discovered 2 exits: *Mat / [*Rec]) -8/Materials History --------- Turn | Location | Event 11 | -11/Scrapyard | Discovered new exit (range 15) 64 | -11/Scrapyard | Entered Materials 312 | -10/Materials | Build established: Mutant 608 | -10/Materials | Discovered new exit (range 15) 639 | -10/Materials | Entered another Materials area 639 | -9/Materials | Evolved 2 slots: Utility x2 1197 | -9/Materials | Discovered new exit (range 5) 1422 | -9/Materials | Discovered new exit (range 9) 1454 | -9/Materials | Entered Storage 1474 | -9/Storage | Met 01-MTF 1561 | -9/Storage | Discovered new exit (range 16) 1742 | -9/Storage | Repaired Imp. Aluminum Leg 1771 | -9/Storage | Repaired Aluminum Leg 2373 | -9/Storage | Discovered new exit (range 10) 2853 | -9/Storage | Entered Materials 2853 | -8/Materials | Accompanied by 1 ally (01-MTF) 2853 | -8/Materials | Evolved 2 slots: Power x1, Propulsion x1 2858 | -8/Materials | 01-MTF left 3516 | -8/Materials | Self-destructed Last Messages --------------- 03385_ G-47 Trooper destroyed. 03391_ Acquired 57 matter. 03400_ Connecting with Terminal... 03424_ A-02 Transporter suffers critical hit (Meltdown). 03424_ Ion Engine melted. 03424_ Med. Storage Unit melted. 03431_ Acquired 42 matter. 03435_ R-06 Scavenger collects Particle Gun. 03462_ W-25 Informer sends out distress signal. 03469_ Slug penetrates Wall. 03470_ Critical hit (Burn: +37). 03488_ Y-45 Defender suffers critical hit (Meltdown). 03488_ Lgt. Treads melted. 03492_ Acquired 11 matter. 03500_ W-25 Informer sends out distress signal. 03501_ O-16 Technician destroyed. 03509_ K-01 Serf collects debris. 03510_ Drone sends a signal. 03511_ Slug penetrates Wall. 03514_ K-01 Serf collects debris. Map ----- +----------------------------------------------------+ | ? ? # ### """## + " ! =##? | | ?? ? # ### ## # T ##? | | ? ???# #?#####+##### # " #?? | | ??? ?# # # [#[ ##? | | ? # ? ?# + """ ##? | | ????## / / #[""" #?# | | ???### ? # ###### # """ #?? | | ??????? ?#????# #??### # #?? | | ? ?## ? #? ?# ######+##########?? | | ?? ????? ? ?# # ##????##?? | | ????#? ?#????# # """"" ##???##??# | | ?? ??# ??? # # """"" ##?#?????? | | ????##?? ##??## # """"" ###?##??#? | | ???#?? ????## + ?#??#?#??#? | | ???????? ?#???# # """"" ###?#?###? | | ?????? ????#??# # """"" #??##????? | | ????#?????#?#?# # """"" #???????#? | | ???????? ??#### # =[! #?##?????? | | ??????? ??????# #####+####??#??#??? | | ???????? ???#?# #???#%#???????????? | | ??????????????# ????# #???????????? | | ??????????????# ??#?# #????####???? | | ????????????#?# ?#?## #??? ??? | | ?????????????## ??#?# #???""" ??? | | ??????????####[ #### ### """ #? | | ????????? w @# """ / #? | | ????????? / gg =#? | | ????????? u g k=% # ] #? | | ??????????/### ######## #? | | ?????????????## ??????????"T"g #? | | ??????????????# ??????????? [ #? | | ??????????????# ?????????????#######? | | ??????????????#?????????????????????? | | ????????????????????????????????????? | | ????????????????????????????????????? | | ????????????????????????????????????? | | ????????????????????????????????????? | | ????????????????????????????????????? | | ????????????????????????????????????? | | ????????????????????????????????????? | | ????????????????????????????????????? | | ????????????????????????????????????? | | ????????????????????????????????????? | | ????????????????????????????????????? | | ????????????????????????????????????? | | ????????????????????????????????????? | | ????????????????????????????????????? | | ????????????????????????????????????? | | ????????????????????????????????????? | | ????????????????????????????????????? | +----------------------------------------------------+ Best States ------------- Heat Dissipation 31 Energy Generation 19 Energy Capacity 430 Matter Stores 300 Matter Capacity 300 Sight Range 16 Robot Scan Range 14 Terrain Scan Range 16 Terrain Scan Density 85 ECM Strength 1 Evasion (%) 55 Item Schematics ----------------- None Robot Schematics ------------------ None Fabricated ------------ Nothing Alien Tech Used ----------------- None Achievements -------------- None Challenges ------------ None Game ------ Seed HoverRagnarokTendrils Manual? 0 Play Time 00:48:57 Cumulative 27.5 hours Start 2022.07.21 @ 15:00:34 End 2022.07.22 @ 08:46:50 Sessions 8 Manual Loads 0 Difficulty Rogue Special Mode None Game No. 38 Rogue 38 Adventurer 0 Explorer 0 Win Type - Total 0 Types 0/0/0/0/0/0/0/0/0 Lore% 16 Gallery% 24 Achievement% 19 Wizard Run 0 Options --------- ASCII 0 Keyboard 0 Movement Numpad Keybinds 0 Fullscreen 1 Font 24/Smallcaps Map View 76x50 Tactical HUD 1 Map Filters NONE Filters NONE Steam 1 RUN: 004be5d2-27e4-47aa-934d-99ef8dc5998f